bitfinex-derivatives/quotes_SOLF0:USTF0_20251229
["timestamp","ask_amount","ask_price","bid_price","bid_amount"]
[1766981470318,0.05733722,128.9,128.85,34.66686291]
[1766981470926,21.7595811,128.94,128.85,41.65816291]
[1766981471123,21.7595811,128.94,128.85,41.6013]
[1766981472129,0.05969461,128.91,128.88,0.05437202]
[1766981473821,21.7595811,128.94,128.88,34.66437202]
[1766981474218,19.11,128.96,128.88,34.66437202]
[1766981474419,21.9195811,128.96,128.88,34.61]
[1766981475132,0.05193797,128.93,128.91,0.05092833]
[1766981479232,0.05193797,128.93,128.88,34.61]
[1766981480432,0.05193797,128.93,128.89,35.59239804]
[1766981481728,0.00193797,128.93,128.89,35.59239804]
[1766981482532,26.1648,128.98,128.89,42.58159804]
[1766981482739,19.18,128.98,128.91,35.54]
[1766981483434,0.05851207,128.96,128.93,0.05486334]
[1766981487539,0.05851207,128.96,128.93,35.59486334]
[1766981488434,26.2638,129.0,128.93,35.59486334]
[1766981489039,19.35,128.99,128.93,35.59486334]
[1766981489541,0.05931486,128.97,128.93,35.59486334]
[1766981491226,19.38,129.01,128.93,35.59486334]
[1766981491429,19.38,129.01,128.93,35.54]
[1766981492144,0.05195399,128.98,128.96,0.05243182]
[1766981492926,0.00195399,128.98,128.96,0.05243182]
[1766981496440,0.00195399,128.98,128.96,35.59243182]
[1766981504944,19.54195399,128.98,128.91,35.54]
[1766981505243,19.54,128.98,128.91,35.54]
[1766981506240,19.50387278,128.96,128.9,18.22]
[1766981507138,6.9867,128.94,128.9,18.22]
[1766981507438,0.00253506,128.93,128.91,0.05673484]
[1766981510041,0.00253506,128.93,128.91,36.58673484]
[1766981510441,26.4448,128.98,128.91,36.58673484]
[1766981511440,0.05493433,128.96,128.91,36.58673484]
[1766981521443,19.64493433,128.96,128.91,0.05673484]
[1766981522054,0.05493433,128.96,128.91,35.81673484]
[1766981524949,0.00493433,128.96,128.91,35.81673484]
[1766981525452,19.65,129.02,128.91,35.81673484]
[1766981525652,19.65,129.02,128.91,35.76]
[1766981525653,5.8232794,129.01,128.91,35.76]
[1766981526058,25.4732794,129.01,128.91,42.7479]
[1766981526258,19.65,129.01,128.91,42.7479]
[1766981526447,19.65,129.01,128.95,35.81717906]
[1766981526650,19.65,129.01,128.88,23.05]
[1766981526851,4.38996316,128.96,128.89,35.76]
[1766981527047,19.65,128.97,128.89,35.76]
[1766981527251,24.03996316,129.0,128.91,35.76]
[1766981527453,25.47542874,128.99,128.91,35.76]
[1766981527760,0.05107786,128.96,128.94,0.05387136]
[1766981530062,0.05107786,128.96,128.92,35.76]
[1766981530365,0.00107786,128.96,128.92,35.76]
[1766981531360,0.00107786,128.96,128.93,35.81807237]
[1766981544075,0.00107786,128.96,128.94,38.02]
[1766981550086,0.00107786,128.96,128.94,45.0064]
[1766981551188,0.00107786,128.96,128.94,47.81552868]
[1766981551394,0.00107786,128.96,128.95,38.02]
[1766981553889,20.17,129.02,128.95,38.02]
[1766981554996,0.04950661,129.0,128.97,0.05023942]
[1766981555791,19.58950661,129.0,128.97,0.05023942]
[1766981558500,19.58950661,129.0,128.95,38.02]
[1766981559403,19.58950661,129.0,128.96,0.0508664]
[1766981576906,26.57280661,129.0,128.96,0.0508664]
[1766981577107,5.84153977,128.99,128.96,0.0508664]
[1766981577406,21.61153977,128.99,128.96,0.0508664]
[1766981577607,15.77,128.99,128.96,0.0508664]
[1766981579106,0.4491336,128.96,128.95,21.55]
[1766981579307,15.77,128.99,128.95,21.55]
[1766981580102,0.0528768,128.98,128.96,0.05953068]
[1766981588615,0.0028768,128.98,128.96,33.00953068]
[1766981594719,13.3828768,128.98,128.95,21.55]
[1766981595810,13.3828768,128.98,128.94,91.66]
[1766981596021,13.3828768,128.98,128.92,124.87]
[1766981596215,13.38,128.98,128.92,124.87]
[1766981596923,0.0591528,128.96,128.94,0.0500819]
[1766981600526,0.0591528,128.96,128.94,8.19e-05]
[1766981606632,7.0446528,128.96,128.94,8.19e-05]
[1766981607428,7.0446528,128.96,128.89,33.21]
[1766981607626,5.87503094,128.95,128.89,33.21]
[1766981608432,0.05107477,128.93,128.91,0.05486863]
[1766981609032,0.05107477,128.93,128.88,16.32]
[1766981610132,0.05107477,128.93,128.89,0.05113478]
[1766981611634,0.05107477,128.93,128.89,33.26113478]
[1766981619644,0.05107477,128.93,128.89,0.05113478]
[1766981624953,0.05107477,128.93,128.89,33.26113478]
[1766981627947,1.35019787,128.99,128.89,33.26113478]
[1766981628149,1.35019787,128.99,128.89,33.21]
[1766981628958,0.05892078,128.95,128.93,0.05385761]
[1766981632256,0.05892078,128.95,128.91,33.06]
[1766981633157,0.05892078,128.95,128.92,0.05697168]
[1766981636659,0.05892078,128.95,128.89,29.94]
[1766981636660,0.00302832,128.91,128.89,29.94]
[1766981636860,6.9858,128.96,128.89,29.94]
[1766981637664,0.05320999,128.94,128.91,0.05754297]
[1766981645567,0.05320999,128.94,128.91,29.99754297]
[1766981645771,0.00320999,128.94,128.91,29.99754297]
[1766981652570,102.11841642,129.04,128.91,29.99754297]
[1766981652773,1.34996218,129.02,128.91,29.94]
[1766981653673,0.05038318,128.98,128.95,0.05034007]
[1766981654175,6.9826,129.02,128.95,29.99034007]
[1766981654379,5.85799252,129.01,128.95,29.99034007]
[1766981654979,1.34977892,129.03,128.95,29.99034007]
[1766981655279,0.05796497,128.99,128.95,29.94]
[1766981656076,0.05796497,128.99,128.96,0.05867475]
[1766981656478,0.05796497,128.99,128.95,24.99943531]
[1766981656679,0.05796497,128.99,128.89,18.65]
[1766981656680,11.4351584,128.99,128.89,18.65]
[1766981656882,5.85691489,128.98,128.89,18.65]
[1766981657482,5.85691489,128.98,128.92,0.05007719]
[1766981657483,0.05573968,128.95,128.92,0.05007719]
[1766981658580,0.05573968,128.95,128.92,31.29007719]
[1766981658977,6.9846,128.98,128.92,31.29007719]
[1766981659980,0.05692047,128.96,128.92,31.29007719]
[1766981660377,0.05692047,128.96,128.92,0.05007719]
[1766981661781,0.05692047,128.96,128.92,31.29007719]
[1766981668896,6.9841,128.99,128.92,31.29007719]
[1766981669095,5.86018276,128.98,128.92,31.24]
[1766981669495,6.9841,128.99,128.92,31.24]
[1766981669994,0.0589453,128.97,128.94,0.05147091]
[1766981677201,0.0589453,128.97,128.94,31.29147091]
[1766981681312,0.0589453,128.97,128.94,0.05147091]
[1766981682616,6.9838,129.0,128.94,31.29147091]
[1766981682812,94.98357242,129.03,128.92,2.81020976]
[1766981682813,5.83023047,128.99,128.92,2.81020976]
[1766981683118,2.81020976,129.01,128.92,31.24]
[1766981683521,2.81020976,128.99,128.9,31.24]
[1766981683719,0.05518347,128.96,128.93,0.05716126]
[1766981684016,0.05518347,128.96,128.9,31.24]
[1766981684220,0.05518347,128.96,128.89,18.65]
[1766981684409,0.05518347,128.96,128.89,49.89]
[1766981684614,6.9863,128.95,128.89,49.89]
[1766981684916,0.05064169,128.93,128.91,0.05859387]
[1766981685318,0.05064169,128.93,128.89,49.89]
[1766981686217,0.05064169,128.93,128.9,0.05280619]
[1766981687420,7.03784169,128.93,128.9,0.05280619]
[1766981689521,7.03784169,128.93,128.87,29.69]
[1766981690422,7.03784169,128.93,128.89,0.05113662]
[1766981691416,7.03784169,128.93,128.9,3.6018]
[1766981691616,7.03784169,128.93,128.87,29.69]
[1766981692521,7.03784169,128.93,128.89,0.0528217]
[1766981694619,7.03784169,128.93,128.87,29.69]
[1766981695723,166.16,128.99,128.85,16.25]
[1766981695724,1.32,128.99,128.91,31.23]
[1766981696126,1.32,128.98,128.91,31.23]
[1766981696529,8.3047,128.98,128.91,34.04020976]
[1766981696728,0.05062857,128.96,128.93,0.05555102]
[1766981696927,0.05062857,128.96,128.93,31.28555102]
[1766981699430,0.05062857,128.96,128.86,6.9908]
[1766981699634,13.13,128.97,128.88,2.81020976]
[1766981699822,15.94020976,128.96,128.87,2.81020976]
[1766981700521,0.0569802,128.93,128.9,0.05375943]
[1766981702729,0.0569802,128.93,128.88,31.23]
[1766981705429,13.3569802,128.93,128.85,19.06020976]
[1766981705637,0.0555794,128.9,128.86,31.23]
[1766981706128,13.3,128.95,128.88,31.23]
[1766981707135,0.05730454,128.93,128.9,0.0555794]
[1766981709239,0.0044206,128.9,128.89,31.23]
[1766981709435,0.05730454,128.93,128.89,31.23]
[1766981712140,14.01,128.99,128.91,31.23]
[1766981712334,16.85020976,128.98,128.91,31.23]
[1766981712639,16.85020976,128.94,128.86,31.23]
[1766981713037,0.05381643,128.91,128.89,0.05730454]
[1766981716644,0.00381643,128.91,128.89,0.05730454]
[1766981716837,0.00381643,128.91,128.89,32.09730454]
[1766981717238,0.00381643,128.91,128.89,27.09788394]
[1766981718248,0.00381643,128.91,128.89,27.14788394]
[1766981718842,26.2453,128.97,128.9,2.81020976]
[1766981719246,26.2453,128.97,128.9,34.85020976]
[1766981719548,26.2453,128.97,128.9,32.04]
[1766981719747,19.3,128.94,128.88,32.04]
[1766981720041,6.9864,128.95,128.88,34.85020976]
[1766981720346,19.34,128.96,128.88,34.85020976]
[1766981720537,6.9853,128.97,128.88,34.85020976]
[1766981720738,0.05855508,128.94,128.88,34.85020976]
[1766981722037,6.9853,128.97,128.88,34.85020976]
[1766981723150,0.05196919,128.94,128.91,32.09843342]
[1766981726849,0.05196919,128.94,128.91,0.05843342]
[1766981728754,25.50345849,128.94,128.87,32.04]
[1766981728950,19.71196919,128.94,128.87,32.04]
[1766981730753,6.9872,128.93,128.87,32.04]
[1766981730949,0.05244234,128.91,128.87,32.04]
[1766981735049,0.05244234,128.91,128.87,27.04]
[1766981751562,0.05244234,128.91,128.88,32.8]
[1766981763380,0.00244234,128.91,128.88,32.8]
[1766981764375,0.00244234,128.91,128.88,32.85083119]
[1766981769585,26.05244234,128.91,128.87,9.083e-05]
[1766981769782,31.80007519,128.9,128.87,9.083e-05]
[1766981769982,26.0,128.9,128.87,9.083e-05]
[1766981770583,32.9888,128.9,128.87,9.083e-05]
[1766981770778,0.00244234,128.91,128.87,9.083e-05]
[1766981770997,5.80285972,128.91,128.87,31.76009083]
[1766981771288,0.00244234,128.91,128.87,31.76009083]
[1766981772396,5.80348244,128.91,128.87,31.76009083]
[1766981780693,5.80348244,128.91,128.87,31.76]
[1766981781593,32.17,128.96,128.87,31.76]
[1766981781795,96.07468228,128.97,128.8,106.14042637]
[1766981781796,32.17,128.94,128.82,4.39468228]
[1766981782099,32.72,128.92,128.8,96.11468228]
[1766981783201,32.72,128.92,128.8,91.72]
[1766981783403,32.72,128.92,128.8,96.11468228]
[1766981783605,6.9885,128.91,128.85,0.05211414]
[1766981783805,6.9885,128.91,128.86,31.17]
[1766981784006,32.72,128.94,128.86,31.17]
[1766981784594,0.0598366,128.91,128.9,31.17]
[1766981784795,32.72,128.98,128.9,31.17]
[1766981785001,32.72,129.01,128.9,31.17]
[1766981785204,32.72,129.01,128.9,35.56468228]
[1766981785405,32.72,129.01,128.9,31.17]
[1766981785598,32.72,129.01,128.9,35.56468228]
[1766981785906,0.00038401,128.97,128.95,31.17]
[1766981786105,36.04357242,129.03,128.95,31.17]
[1766981786609,40.4382547,129.03,128.95,31.17]
[1766981786909,0.05726569,129.0,128.98,0.00209956]
[1766981787307,36.04357242,129.03,128.98,0.00209956]
[1766981788302,32.76932204,129.02,128.98,0.00209956]
[1766981789808,39.75162204,129.02,128.98,0.00209956]
[1766981789998,32.72,128.99,128.92,31.17]
[1766981790406,32.72,128.99,128.89,31.17]
[1766981790902,32.72,128.98,128.89,31.17]
[1766981791109,0.05635261,128.95,128.93,0.05210129]
[1766981791500,32.77635261,128.95,128.93,0.00210129]
[1766981791704,32.77635261,128.95,128.87,31.17]
[1766981791905,32.72,128.95,128.87,31.17]
[1766981792712,0.05694275,128.92,128.9,0.05762513]
[1766981793010,32.72,128.95,128.9,0.05762513]
[1766981793209,39.7064,128.95,128.9,0.05762513]
[1766981793907,0.05060346,128.94,128.9,0.05762513]
[1766981794112,32.77060346,128.94,128.9,0.05762513]
[1766981797214,35.58331303,128.94,128.9,0.05762513]
[1766981797914,32.72,128.93,128.86,43.78]
[1766981798118,35.53270957,128.92,128.86,43.78]
[1766981798703,35.53270957,128.92,128.86,12.61]
[1766981798905,0.05484801,128.9,128.88,0.05890833]
[1766981799609,0.05484801,128.9,128.86,12.61]
[1766981800611,0.05484801,128.9,128.87,0.05952658]
[1766981801312,0.00484801,128.9,128.87,31.22952658]
[1766981804413,42.51960957,128.94,128.87,31.22952658]
[1766981804414,39.7069,128.94,128.87,31.22952658]
[1766981804718,42.51960957,128.94,128.87,31.22952658]
[1766981805618,0.05292947,128.92,128.87,31.22952658]
[1766981810824,41.21333904,128.92,128.87,0.05952658]
[1766981811015,34.22563904,128.92,128.87,0.05952658]
[1766981811727,0.05292947,128.92,128.87,31.50952658]
[1766981813424,7.04072947,128.92,128.87,31.50952658]
[1766981814622,41.26343904,128.92,128.87,0.05952658]
[1766981815016,38.45072947,128.92,128.87,0.05952658]
[1766981815921,38.45072947,128.92,128.87,33.18952658]
[1766981815922,7.04072947,128.92,128.87,33.18952658]
[1766981819535,7.04072947,128.92,128.81,2.81270957]
[1766981819536,41.21100957,128.91,128.81,2.81270957]
[1766981819835,41.21100957,128.91,128.83,2.81270957]
[1766981820030,38.3983,128.91,128.83,2.81270957]
[1766981820236,31.41,128.91,128.83,2.81270957]
[1766981820535,0.00220591,128.88,128.86,0.05819018]
[1766981821537,0.00220591,128.88,128.86,33.18819018]
[1766981823736,6.987,128.94,128.86,33.18819018]
[1766981823937,6.987,128.94,128.86,35.94270957]
[1766981824838,0.04981666,128.91,128.89,0.05474299]
[1766981826036,31.41,128.95,128.89,33.18474299]
[1766981826835,8.70200124,128.96,128.89,33.18474299]
[1766981827030,0.05373349,128.94,128.89,33.18474299]
[1766981828748,0.00373349,128.94,128.89,33.18474299]
[1766981829436,2.81644306,128.94,128.89,33.18474299]
[1766981829637,34.22644306,128.94,128.89,0.05474299]
[1766981830739,6.9873,128.93,128.89,0.05474299]
[1766981831242,34.22270957,128.92,128.89,0.00474299]
[1766981831636,6.9886,128.91,128.85,33.13]
[1766981832538,0.0557893,128.89,128.87,0.05049865]
[1766981834044,6.9886,128.91,128.87,33.18049865]
[1766981834546,9.80020957,128.93,128.87,33.18049865]
[1766981835043,0.05398276,128.91,128.87,33.18049865]
[1766981836250,0.00398276,128.91,128.87,33.18049865]
[1766981839240,5.69757539,128.94,128.87,33.18049865]
[1766981839442,6.9863,128.95,128.87,33.18049865]
[1766981839641,6.9863,128.95,128.87,33.13]
[1766981840248,0.00143646,128.92,128.9,0.0584693]
[1766981841247,0.00143646,128.92,128.9,33.0584693]
[1766981841443,33.77,128.99,128.9,35.87117887]
[1766981841646,5.69398146,128.98,128.9,35.81270957]
[1766981842347,40.7541,128.99,128.93,33.05779892]
[1766981843343,0.05914051,128.97,128.93,33.05779892]
[1766981844840,35.11977892,129.03,128.93,33.05779892]
[1766981845052,42.26779359,129.02,128.93,33.0]
[1766981845251,36.58270957,129.02,128.93,33.0]
[1766981845549,40.7515,129.04,128.95,33.0]
[1766981845949,40.7515,129.04,128.94,2.81270957]
[1766981845950,0.0565183,129.01,128.98,0.05154902]
[1766981848745,33.8265183,129.01,128.98,0.00154902]
[1766981848946,36.58270957,128.99,128.91,33.0]
[1766981849147,2.81270957,128.97,128.91,33.0]
[1766981849743,36.58270957,128.97,128.87,33.0]
[1766981849947,33.77,128.97,128.91,0.0594899]
[1766981850145,36.58270957,128.97,128.91,0.0594899]
[1766981850954,0.05035202,128.95,128.91,0.0594899]
[1766981851548,2.86306159,128.95,128.91,0.0594899]
[1766981851951,0.05035202,128.95,128.91,0.0594899]
[1766981857156,0.05035202,128.95,128.91,33.0594899]
[1766981861651,0.00035202,128.95,128.91,33.0594899]
[1766981865061,33.77,129.02,128.91,33.0594899]
[1766981865259,38.16356283,129.02,128.91,33.0]
[1766981866164,0.05583325,128.98,128.95,0.05527958]
[1766981868565,34.27,129.01,128.95,33.24527958]
[1766981868764,11.37596283,129.02,128.95,33.24527958]
[1766981869265,45.64596283,129.02,128.95,33.24527958]
[1766981869763,0.05762539,129.0,128.95,33.24527958]
[1766981873157,33.65762539,129.0,128.95,0.05527958]
[1766981873358,38.05118822,129.0,128.95,0.05527958]
[1766981875460,40.64102539,129.0,128.95,0.05527958]
[1766981875972,40.584,128.99,128.95,0.05527958]
[1766981880666,0.05762539,129.0,128.95,0.05527958]
[1766981882267,33.65762539,129.0,128.95,0.05527958]
[1766981882669,40.64102539,129.0,128.95,0.05527958]
[1766981884476,45.03458822,129.0,128.95,0.05527958]
[1766981886375,40.64102539,129.0,128.95,0.05527958]
[1766981888074,7.04102539,129.0,128.95,34.30527958]
[1766981888782,40.64102539,129.0,128.95,0.05527958]
[1766981889480,40.5839,128.99,128.95,0.05527958]
[1766981895380,0.44472042,128.95,128.93,34.25]
[1766981895582,40.5839,128.99,128.93,34.25]
[1766981896079,42.8145,128.98,128.9,33.58]
[1766981896377,35.88650193,128.95,128.87,33.58]
[1766981896579,35.83,128.95,128.87,33.58]
[1766981896975,6.9873,128.93,128.87,33.58]
[1766981897478,0.05544665,128.91,128.89,0.05966718]
[1766981897682,6.9873,128.93,128.89,0.05966718]
[1766981898077,4.39356283,128.99,128.89,33.63966718]
[1766981898078,6.9863,128.95,128.89,33.63966718]
[1766981898381,6.9863,128.95,128.89,33.58]
[1766981898584,0.05194137,128.93,128.91,0.0534528]
[1766981899283,0.00194137,128.93,128.91,33.6334528]
[1766981907390,0.00194137,128.93,128.91,0.0534528]
[1766981913793,0.00194137,128.93,128.91,33.6334528]
[1766981918602,2.81135794,128.96,128.91,33.6334528]
[1766981919606,0.05061288,128.95,128.91,33.6334528]
[1766981920512,0.00061288,128.95,128.91,33.6334528]
[1766981929213,91.66,129.02,128.91,33.6334528]
[1766981929214,2.81135794,129.0,128.91,33.6334528]
[1766981929418,8.51145643,129.0,128.91,33.58]
[1766981929828,8.51145643,129.0,128.91,36.39135794]
[1766981930217,0.0040491,128.97,128.95,35.94]
[1766981938630,42.50425794,129.01,128.95,35.94]
[1766981939619,0.05102088,128.99,128.97,0.05910572]
[1766981942730,6.9827,129.02,128.97,33.82910572]
[1766981943726,0.02255619,129.01,128.97,33.82910572]
[1766981944030,35.30255619,129.01,128.97,0.05910572]
[1766981944627,38.11391413,129.01,128.97,0.05910572]
[1766981946629,35.30255619,129.01,128.97,0.05910572]
[1766981946830,38.11391413,129.01,128.97,0.05910572]
[1766981949937,2.81135794,128.99,128.94,33.77]
[1766981950334,38.09135794,128.99,128.91,33.77]
[1766981951036,0.05295077,128.96,128.94,0.0532462]
[1766981951334,0.00295077,128.96,128.94,0.0532462]
[1766981951536,45.07535794,128.99,128.94,0.0532462]
[1766981951737,6.984,128.99,128.94,33.8232462]
[1766981952331,42.2632,129.01,128.94,33.8232462]
[1766981952531,0.02871114,128.99,128.94,33.8232462]
[1766981954236,6.9825,129.02,128.94,33.8232462]
[1766981954445,6.9825,129.02,128.94,33.77]
[1766981955131,6.9825,129.02,128.97,0.05207471]
[1766981955332,42.7125,129.02,128.97,0.05207471]
[1766981955535,2.81135794,129.01,128.97,0.05207471]
[1766981955737,45.52425794,129.01,128.97,0.05207471]
[1766981955938,35.73,129.0,128.97,0.00207471]
[1766981956137,38.54135794,128.99,128.92,32.81]
[1766981956341,42.7145,128.98,128.92,32.81]
[1766981957438,0.0491295,128.96,128.94,0.05955775]
[1766981960535,45.52545794,128.99,128.94,0.05955775]
[1766981961950,42.7145,128.98,128.94,0.05955775]
[1766981962348,6.9851,128.97,128.94,0.05955775]
[1766981963050,38.54135794,128.95,128.89,32.81]
[1766981963548,35.73,128.95,128.89,32.81]
[1766981963950,0.05020357,128.93,128.91,0.05493413]
[1766981968454,6.9862,128.95,128.91,0.05493413]
[1766981969546,42.7162,128.95,128.91,0.05493413]
[1766981975156,42.7154,128.97,128.91,32.86493413]
[1766981975360,42.7154,128.97,128.93,0.05139864]
[1766981975361,45.52675794,128.97,128.93,0.05139864]
[1766981975658,35.73,128.96,128.93,0.05139864]
[1766981980960,35.73,128.98,128.93,32.86139864]
[1766981981165,35.73,128.98,128.93,0.05139864]
[1766981986861,6.9832,129.01,128.93,42.42839864]
[1766981987057,6.9832,129.01,128.96,0.05616265]
[1766981987058,41.3432,129.01,128.96,0.05616265]
[1766981989367,41.3432,129.01,128.94,35.39]
[1766981989368,41.3432,129.01,128.92,42.3775]
[1766981989567,34.36,128.99,128.92,35.39]
[1766981990569,0.05061785,128.97,128.94,0.05285094]
[1766981995876,35.27061785,128.97,128.94,0.00285094]
[1766982001272,251.4535,129.07,128.94,0.00285094]
[1766982001273,35.22,129.02,128.94,35.23285094]
[1766982001474,35.22,129.02,128.94,35.23]
[1766982002076,13.9576,129.09,128.93,4.39233735]
[1766982002077,35.22,129.09,129.0,35.23]
[1766982002280,0.05472456,129.06,129.03,0.05297577]
[1766982003980,35.22,129.1,129.03,35.28297577]
[1766982007675,35.22,129.12,129.03,35.28297577]
[1766982007985,39.61233735,129.12,129.06,0.05883269]
[1766982009692,35.22,129.11,129.06,0.05883269]
[1766982014088,42.1977,129.11,129.06,0.05883269]
[1766982015481,42.1977,129.11,128.99,4.39233735]
[1766982015482,31.9,129.1,129.02,34.63]
[1766982015686,31.9,129.08,129.0,34.63]
[1766982016595,0.05327734,129.05,129.03,0.05233907]
[1766982018390,31.9,129.08,129.03,34.68233907]
[1766982020496,6.9781,129.1,129.03,34.68233907]
[1766982020497,38.8781,129.1,129.03,34.68233907]
[1766982021597,31.9,129.1,129.03,34.68233907]
[1766982024006,31.9,129.1,129.03,41.66383907]
[1766982024209,31.9,129.1,129.03,34.68233907]
[1766982025599,38.8781,129.1,129.03,34.68233907]
[1766982025902,36.29233735,129.1,129.03,0.05233907]
[1766982026105,31.9,129.09,129.03,0.05233907]
[1766982026495,31.9,129.09,129.03,34.68233907]
[1766982027608,31.9,129.09,129.03,0.05233907]
[1766982027902,36.29233735,129.08,129.03,0.00233907]
[1766982028205,31.9,129.08,128.99,34.63]
[1766982028599,38.8798,129.07,128.99,41.6137]
[1766982029101,0.058201,129.04,129.02,0.05877837]
[1766982030296,31.9,129.11,129.02,34.68877837]
[1766982030609,36.29233735,129.11,129.02,34.63]
[1766982030902,4.39233735,129.09,129.0,34.63]
[1766982031099,31.9,129.08,129.0,34.63]
[1766982031602,38.8791,129.08,129.03,0.05278419]
[1766982033307,38.8791,129.08,129.03,0.00278419]
[1766982034193,31.9,129.06,129.03,0.00278419]
[1766982036703,0.05901373,129.07,129.03,0.00278419]
[1766982043309,0.05901373,129.07,129.03,34.63278419]
[1766982044202,31.9,129.09,129.03,34.63278419]
[1766982045406,31.9,129.11,129.03,41.61418419]
[1766982045610,31.9,129.11,129.06,0.05721506]
[1766982046312,32.64,129.14,129.06,31.92721506]
[1766982046612,35.44577623,129.13,129.04,31.87]
[1766982046913,95.43081574,129.17,129.04,31.87]
[1766982046914,32.64,129.1,129.04,31.87]
[1766982047605,0.04944236,129.08,129.06,0.04905798]
[1766982048310,0.04944236,129.08,129.03,91.6]
[1766982048512,0.04944236,129.08,129.03,123.47]
[1766982048816,2.80577623,129.07,129.0,31.87]
[1766982049110,32.64,129.08,129.0,31.87]
[1766982049320,35.44577623,129.12,129.04,31.87]
[1766982049610,35.44577623,129.1,129.01,2.80577623]
[1766982049809,35.44577623,129.1,129.02,31.87]
[1766982050311,0.05227377,129.07,129.05,0.05673792]
[1766982050510,0.05227377,129.07,129.05,0.05805572]
[1766982052710,0.05227377,129.07,129.02,31.87]
[1766982053015,33.79227377,129.07,129.0,33.78]
[1766982054020,33.79227377,129.07,129.02,0.05933577]
[1766982060718,0.05227377,129.07,129.02,33.83933577]
[1766982063319,33.79227377,129.07,129.02,0.05933577]
[1766982065829,36.54577623,129.06,129.02,0.05933577]
[1766982066121,33.74,129.06,129.02,0.05933577]
[1766982066322,40.7203,129.06,128.98,142.03510641]
[1766982066524,40.7203,129.06,128.99,33.78]
[1766982066724,33.74,129.02,128.97,9.67110641]
[1766982066926,33.74,129.02,128.95,33.78]
[1766982067126,36.54577623,129.02,128.95,33.78]
[1766982067424,0.05909443,129.0,128.97,0.05536827]
[1766982067623,0.05351627,129.0,128.97,0.05870704]
[1766982069817,2.80577623,128.99,128.92,91.6]
[1766982070019,2.80577623,128.94,128.9,23.32]
[1766982070216,2.80577623,128.92,128.87,33.78]
[1766982070419,2.80577623,128.9,128.81,9.67110641]
[1766982070622,2.80577623,128.9,128.82,33.78]
[1766982070922,2.80577623,128.91,128.83,33.78]
[1766982071126,0.05244645,128.88,128.86,0.05798206]
[1766982071325,0.00244645,128.88,128.86,33.83798206]
[1766982071626,2.80577623,128.92,128.86,33.83798206]
[1766982071829,2.80577623,128.92,128.86,33.78]
[1766982072031,2.81340177,128.91,128.86,33.78]
[1766982072223,22.88999394,128.95,128.86,33.78]
[1766982072422,2.86502472,128.92,128.89,0.05710833]
[1766982072631,2.86502472,128.92,128.89,0.05653125]
[1766982075533,0.05162295,128.92,128.89,0.05653125]
[1766982080134,0.05162295,128.92,128.89,0.01653125]
[1766982081729,0.00162295,128.92,128.89,33.65653125]
[1766982083236,0.00162295,128.92,128.89,0.01653125]
[1766982083437,2.81502472,128.92,128.89,0.01653125]
[1766982083633,0.00162295,128.92,128.89,0.01653125]
[1766982084236,0.00162295,128.92,128.89,33.65653125]
[1766982084435,2.81340177,128.96,128.89,33.65653125]
[1766982084731,2.81340177,128.96,128.89,33.64]
[1766982085435,0.05250083,128.94,128.91,0.05344484]
[1766982091349,6.9847,128.98,128.91,33.69344484]
[1766982092438,0.05985646,128.96,128.91,33.69344484]
[1766982099655,6.9839,128.99,128.91,36.50684661]
[1766982099947,6.9832,129.01,128.92,33.64]
[1766982100744,0.05194561,128.98,128.95,0.05245576]
[1766982103959,6.9822,129.03,128.95,33.69245576]
[1766982104166,91.66,129.05,128.95,33.64]
[1766982104859,91.66,129.05,128.99,0.05541124]
[1766982106664,6.9823,129.02,128.99,0.05541124]
[1766982106862,22.95833002,129.05,128.99,0.05541124]
[1766982107167,96.04907657,129.06,128.99,0.05541124]
[1766982108265,6.9818,129.03,128.99,0.05541124]
[1766982115187,29.77365064,129.05,128.99,0.05541124]
[1766982115381,6.981,129.05,128.99,0.05541124]
[1766982115570,96.04907657,129.06,128.99,0.05541124]
[1766982116569,6.9812,129.04,128.99,0.05541124]
[1766982129881,4.38907657,129.01,128.92,34.63]
[1766982130486,4.38907657,129.0,128.92,34.63]
[1766982130886,0.05105807,128.97,128.95,0.05722324]
[1766982132481,0.05105807,128.97,128.9,34.63]
[1766982133089,4.38907657,129.02,128.91,34.63]
[1766982133592,96.00907657,129.03,128.91,39.01907657]